fUSD/lending_fUSD_20260115
["ID","MTS","AMOUNT","RATE_DAILY","PERIOD"]
[402042878,1768492249811,-500.0,0.00038356,30]
[402042879,1768492249821,-500.0,0.00038356,30]
[402042880,1768492249830,-702.13,0.00038356,30]
[402042881,1768492249839,-500.0,0.00038356,30]
[402042882,1768492249849,-500.0,0.00038356,30]
[402042883,1768492249858,-500.0,0.00038356,30]
[402042884,1768492249867,-500.0,0.00038356,30]
[402042885,1768492249877,-500.0,0.00038356,30]
[402042886,1768492249886,-500.0,0.00038356,30]
[402042887,1768492249896,-654.87,0.00038356,30]
[402042888,1768492249905,-500.0,0.00038356,30]
[402042889,1768492249914,-500.0,0.00038356,30]
[402042890,1768492249924,-500.0,0.00038356,30]
[402042891,1768492249934,-767.68,0.00038356,30]
[402042892,1768492249943,-500.0,0.00038356,30]
[402042893,1768492249952,-500.0,0.00038356,30]
[402042894,1768492249962,-500.0,0.00038356,30]
[402042895,1768492249972,-500.0,0.00038356,30]
[402042896,1768492249981,-700.87,0.00038356,30]
[402042897,1768492249990,-500.0,0.00038356,30]
[402042898,1768492249999,-500.0,0.00038356,30]
[402042899,1768492250008,-500.0,0.00038356,30]
[402042900,1768492250018,-598.98,0.00038356,30]
[402042901,1768492250027,-500.0,0.00038356,30]
[402042902,1768492250037,-561.91,0.00038356,30]
[402042903,1768492250047,-500.0,0.00038356,30]
[402042904,1768492250058,-500.0,0.00038356,30]
[402042905,1768492250068,-736.68,0.00038356,30]
[402042906,1768492250078,-500.0,0.00038356,30]
[402042907,1768492250087,-500.0,0.00038356,30]
[402042908,1768492250100,-1052.23,0.00038356,30]
[402042909,1768492250109,-500.0,0.00038356,30]
[402042910,1768492250119,-500.0,0.00038356,30]
[402042911,1768492250128,-500.0,0.00038356,30]
[402042912,1768492250139,-1509.43,0.00038356,30]
[402042913,1768492250148,-636.05,0.00038356,30]
[402042914,1768492250158,-500.0,0.00038356,30]
[402042915,1768492250168,-500.0,0.00038356,30]
[402042916,1768492250177,-500.0,0.00038356,30]
[402042917,1768492250187,-500.0,0.00038356,30]
[402042918,1768492250197,-500.0,0.00038356,30]
[402042919,1768492250209,-507.47,0.00038356,30]
[402042920,1768492250219,-500.0,0.00038356,30]
[402042921,1768492250228,-500.0,0.00038356,30]
[402042922,1768492250238,-500.0,0.00038356,30]
[402042923,1768492250247,-500.0,0.00038356,30]
[402042924,1768492250257,-500.0,0.00038356,30]
[402042925,1768492250266,-500.0,0.00038356,30]
[402042926,1768492250276,-341.97190138,0.00038356,30]
[402042927,1768492250285,-619.25,0.00038356,30]
[402042928,1768492250294,-500.0,0.00038356,30]
[402042929,1768492250304,-500.0,0.00038356,30]
[402042930,1768492250313,-517.52479804,0.00038356,30]
[402042931,1768492250323,-500.0,0.00038356,30]
[402042932,1768492250333,-500.0,0.00038356,30]
[402042933,1768492250342,-500.0,0.00038356,30]
[402042934,1768492250352,-500.0,0.00038356,30]
[402042935,1768492250362,-500.0,0.00038356,30]
[402042936,1768492250371,-500.0,0.00038356,30]
[402042937,1768492250380,-500.0,0.00038356,30]
[402042938,1768492250390,-596.98,0.00038356,30]
[402042939,1768492250400,-500.0,0.00038356,30]
[402042940,1768492250409,-500.0,0.00038356,30]
[402042941,1768492250419,-500.0,0.00038356,30]
[402042942,1768492250428,-500.0,0.00038356,30]
[402042943,1768492250438,-532.19,0.00038356,30]
[402042944,1768492250447,-500.0,0.00038356,30]
[402042945,1768492250457,-500.0,0.00038356,30]
[402042946,1768492250466,-500.0,0.00038356,30]
[402042947,1768492250476,-500.0,0.00038356,30]
[402042948,1768492250485,-500.0,0.00038356,30]
[402042949,1768492250495,-786.51,0.00038356,30]
[402042950,1768492250504,-500.0,0.00038356,30]
[402042951,1768492250514,-660.85,0.00038356,30]
[402042952,1768492250523,-559.34154953,0.00038356,30]
[402042953,1768492250533,-500.0,0.00038356,30]
[402042954,1768492250542,-500.0,0.00038356,30]
[402042955,1768492250552,-500.0,0.00038356,30]
[402042956,1768492250561,-500.0,0.00038356,30]
[402042957,1768492250570,-853.65,0.00038356,30]
[402042958,1768492250580,-500.0,0.00038356,30]
[402042959,1768492250590,-500.0,0.00038356,30]
[402042960,1768492250600,-1614.43,0.00038356,30]
[402042961,1768492250611,-500.0,0.00038356,30]
[402042962,1768492250621,-733.3,0.00038356,30]
[402042963,1768492250632,-500.0,0.00038356,30]
[402042964,1768492250641,-525.94357008,0.00038356,30]
[402042965,1768492250651,-934.43,0.00038356,30]
[402042966,1768492250660,-661.91,0.00038356,30]
[402042967,1768492250669,-500.0,0.00038356,30]
[402042968,1768492250679,-569.42,0.00038356,30]
[402042969,1768492250687,-500.0,0.00038356,30]
[402042970,1768492250696,-500.0,0.00038356,30]
[402042971,1768492250707,-500.0,0.00038356,30]
[402042972,1768492250719,-500.0,0.00038356,30]
[402042973,1768492250728,-606.29,0.00038356,30]
[402042974,1768492250737,-500.0,0.00038356,30]
[402042975,1768492250746,-500.0,0.00038356,30]
[402042976,1768492250756,-500.0,0.00038356,30]
[402042977,1768492250765,-500.0,0.00038356,30]
[402042978,1768492250774,-500.0,0.00038356,30]
[402042979,1768492250783,-500.0,0.00038356,30]
[402042980,1768492250797,-502.17397834,0.00038356,30]
[402042981,1768492250806,-1677.73,0.00038356,30]
[402042982,1768492250816,-500.0,0.00038356,30]
[402042983,1768492250826,-500.0,0.00038356,30]
[402042984,1768492250836,-1087.44,0.00038356,30]
[402042985,1768492250847,-500.0,0.00038356,30]
[402042986,1768492250856,-500.0,0.00038356,30]
[402042987,1768492250865,-500.0,0.00038356,30]
[402042988,1768492250875,-1330.05,0.00038356,30]
[402042989,1768492250883,-500.0,0.00038356,30]
[402042990,1768492250892,-500.0,0.00038356,30]
[402042991,1768492250902,-500.0,0.00038356,30]
[402042992,1768492250911,-500.0,0.00038356,30]
[402042993,1768492250920,-500.0,0.00038356,30]
[402042994,1768492250929,-500.0,0.00038356,30]
[402042995,1768492250939,-610.94662604,0.00038356,30]
[402042996,1768492250948,-500.0,0.00038356,30]
[402042997,1768492250960,-500.0,0.00038356,30]
[402042998,1768492250969,-923.62,0.00038356,30]
[402042999,1768492250979,-500.0,0.00038356,30]
[402043000,1768492250989,-186.38803352,0.00038356,30]
[402043001,1768492250998,-500.0,0.00038356,30]
[402043002,1768492251007,-1364.52,0.00038356,30]
[402043003,1768492251017,-500.0,0.00038356,5]
[402043004,1768492251026,-500.0,0.00038356,30]
[402043005,1768492251036,-864.75,0.00038356,30]
[402043006,1768492251045,-500.0,0.00038356,30]
[402043007,1768492251054,-500.0,0.00038356,30]
[402043008,1768492251064,-500.0,0.00038356,30]
[402043009,1768492251074,-500.0,0.00038356,30]
[402043010,1768492251085,-500.0,0.00038356,30]
[402043011,1768492251095,-500.0,0.00038356,30]
[402043012,1768492251104,-799.22,0.00038356,30]
[402043013,1768492251114,-1324.79,0.00038356,30]
[402043014,1768492251123,-500.0,0.00038356,30]
[402043015,1768492251133,-500.0,0.00038356,30]
[402043016,1768492251142,-500.0,0.00038356,30]
[402043017,1768492251151,-500.0,0.00038356,30]
[402043018,1768492251161,-596.21689534,0.00038356,30]
[402043019,1768492251170,-500.0,0.00038356,30]
[402043020,1768492251179,-500.0,0.00038356,30]
[402043021,1768492251188,-500.0,0.00038356,30]
[402043022,1768492251198,-500.0,0.00038356,30]
[402043023,1768492251207,-503.36391659,0.00038356,30]
[402043024,1768492251216,-500.0,0.00038356,30]
[402043025,1768492251225,-500.0,0.00038356,30]
[402043026,1768492251235,-1480.16,0.00038356,30]
[402043027,1768492251245,-500.0,0.00038356,30]
[402043028,1768492251254,-500.0,0.00038356,30]
[402043029,1768492251264,-500.0,0.00038356,30]
[402043030,1768492251274,-500.0,0.00038356,30]
[402043031,1768492251284,-500.0,0.00038356,30]
[402043032,1768492251294,-500.0,0.00038356,30]
[402043033,1768492251303,-500.0,0.00038356,30]
[402043034,1768492251313,-500.0,0.00038356,30]
[402043035,1768492251322,-500.0,0.00038356,30]
[402043036,1768492251332,-500.0,0.00038356,30]
[402043037,1768492251341,-500.0,0.00038356,30]
[402043038,1768492251350,-500.0,0.00038356,30]
[402043039,1768492251360,-500.0,0.00038356,30]
[402043040,1768492251369,-500.0,0.00038356,30]
[402043041,1768492251379,-500.0,0.00038356,30]
[402043042,1768492251388,-904.0,0.00038356,30]
[402043043,1768492251397,-564.57,0.00038356,30]
[402043044,1768492251407,-538.47,0.00038356,30]
[402043045,1768492251416,-500.0,0.00038356,30]
[402043046,1768492251426,-500.0,0.00038356,30]
[402043047,1768492251435,-500.0,0.00038356,30]
[402043048,1768492251445,-928.6,0.00038356,30]
[402043049,1768492251454,-500.0,0.00038356,30]
[402043050,1768492251464,-500.0,0.00038356,30]
[402043051,1768492251473,-508.48090777,0.00038356,30]
[402043052,1768492251483,-500.0,0.00038356,30]
[402043053,1768492251492,-500.0,0.00038356,30]
[402043054,1768492251501,-504.53081222,0.00038356,30]
[402043055,1768492251510,-500.0,0.00038356,30]
[402043056,1768492251519,-500.0,0.00038356,30]
[402043057,1768492251529,-500.0,0.00038356,30]
[402043058,1768492251539,-502.77307193,0.00038356,30]
[402043059,1768492251548,-500.0,0.00038356,30]
[402043060,1768492251558,-500.0,0.00038356,30]
[402043061,1768492251567,-500.0,0.00038356,30]
[402043062,1768492251576,-500.0,0.00038356,30]
[402043063,1768492251586,-1279.01,0.00038356,30]
[402043064,1768492251595,-500.0,0.00038356,30]
[402043065,1768492251605,-500.0,0.00038356,30]
[402043066,1768492251614,-618.91,0.00038356,30]
[402043067,1768492251623,-500.0,0.00038356,30]
[402043068,1768492251633,-500.0,0.00038356,30]
[402043069,1768492251642,-500.0,0.00038356,30]
[402043070,1768492251651,-500.0,0.00038356,30]
[402043071,1768492251661,-500.0,0.00038356,30]
[402043072,1768492251670,-736.28,0.00038356,2]
[402043073,1768492251680,-500.0,0.00038356,30]
[402043074,1768492251690,-503.00300261,0.00038356,30]
[402043075,1768492251700,-500.0,0.00038356,30]
[402043076,1768492251711,-621.92,0.00038356,30]
[402043077,1768492251723,-500.0,0.00038356,30]
[402043078,1768492251732,-1630.79,0.00038356,30]
[402043079,1768492251742,-500.0,0.00038356,30]
[402043080,1768492251752,-500.0,0.00038356,30]
[402043081,1768492251762,-500.0,0.00038356,30]
[402043082,1768492251771,-500.0,0.00038356,30]
[402043083,1768492251780,-500.0,0.00038356,30]
[402043084,1768492251792,-500.0,0.00038356,30]
[402043085,1768492251801,-500.0,0.00038356,30]
[402043086,1768492251810,-500.0,0.00038356,30]
[402043087,1768492251820,-657.02,0.00038356,30]
[402043088,1768492251829,-500.0,0.00038356,30]
[402043089,1768492251838,-500.0,0.00038356,30]
[402043090,1768492251848,-505.11199191,0.00038356,30]
[402043091,1768492251857,-996.22,0.00038356,30]
[402043092,1768492251867,-191.076229,0.00038356,30]
[402043093,1768492251876,-507.7186958,0.00038356,30]
[402043094,1768492251886,-1094.58,0.00038356,30]
[402043095,1768492251895,-226.267215,0.00038356,30]
[402043096,1768492251905,-500.0,0.00038356,30]
[402043097,1768492251915,-757.12,0.00038356,30]
[402043098,1768492251924,-500.0,0.00038356,30]
[402043099,1768492251934,-500.0,0.00038356,30]
[402043100,1768492251944,-500.0,0.00038356,30]
[402043101,1768492251959,-500.0,0.00038356,30]
[402043102,1768492251969,-723.08,0.00038356,30]
[402043103,1768492251979,-500.0,0.00038356,30]
[402043104,1768492251989,-517.3,0.00038356,30]
[402043105,1768492251999,-537.36,0.00038356,30]
[402043106,1768492252010,-500.0,0.00038356,30]
[402043107,1768492252019,-500.0,0.00038356,30]
[402043108,1768492252029,-500.0,0.00038356,30]
[402043109,1768492252040,-500.0,0.00038356,30]
[402043110,1768492252049,-500.0,0.00038356,30]
[402043111,1768492252060,-1457.16,0.00038356,30]
[402043112,1768492252069,-575.33,0.00038356,30]
[402043113,1768492252079,-500.0,0.00038356,30]
[402043114,1768492252088,-500.0,0.00038356,30]
[402043115,1768492252097,-1133.44,0.00038356,30]
[402043116,1768492252107,-500.0,0.00038356,30]
[402043117,1768492252116,-500.0,0.00038356,2]
[402043118,1768492252126,-500.0,0.00038356,30]
[402043119,1768492252135,-500.0,0.00038356,30]
[402043120,1768492252145,-535.29,0.00038356,30]
[402043121,1768492252154,-520.11,0.00038356,30]
[402043122,1768492252164,-502.32,0.00038356,30]
[402043123,1768492252173,-500.0,0.00038356,30]
[402043124,1768492252183,-972.63,0.00038356,30]
[402043125,1768492252192,-500.0,0.00038356,30]
[402043126,1768492252201,-500.0,0.00038356,30]
[402043127,1768492252213,-500.0,0.00038356,30]
[402043128,1768492252223,-500.0,0.00038356,30]
[402043129,1768492252233,-623.63477022,0.00038356,30]
[402043130,1768492252242,-500.0,0.00038356,30]
[402043131,1768492252252,-500.0,0.00038356,30]
[402043132,1768492252261,-500.0,0.00038356,30]
[402043133,1768492252270,-694.56891083,0.00038356,30]
[402043134,1768492252280,-1088.44,0.00038356,30]
[402043135,1768492252290,-526.4,0.00038356,30]
[402043136,1768492252299,-500.0,0.00038356,30]
[402043137,1768492252308,-501.85724683,0.00038356,30]
[402043138,1768492252318,-500.0,0.00038356,30]
[402043139,1768492252328,-500.0,0.00038356,30]
[402043140,1768492252337,-503.38760863,0.00038356,30]
[402043141,1768492252347,-500.0,0.00038356,30]
[402043142,1768492252357,-644.73,0.00038356,30]
[402043143,1768492252367,-1254.15,0.00038356,30]
[402043144,1768492252376,-500.0,0.00038356,30]
[402043145,1768492252387,-500.0,0.00038356,30]
[402043146,1768492252396,-1435.84,0.00038356,30]
[402043147,1768492252406,-150.978528,0.00038356,30]
[402043148,1768492252415,-1289.29,0.00038356,30]
[402043149,1768492252425,-500.0,0.00038356,30]
[402043150,1768492252434,-500.0,0.00038356,30]
[402043151,1768492252444,-500.0,0.00038356,30]
[402043152,1768492252453,-500.0,0.00038356,30]
[402043153,1768492252465,-500.0,0.00038356,30]
[402043154,1768492252475,-1312.25,0.00038356,30]
[402043155,1768492252485,-500.0,0.00038356,30]
[402043156,1768492252495,-500.0,0.00038356,30]
[402043157,1768492252505,-612.32,0.00038356,30]
[402043158,1768492252514,-500.0,0.00038356,30]
[402043159,1768492252523,-500.0,0.00038356,30]
[402043160,1768492252533,-500.0,0.00038356,30]
[402043161,1768492252543,-500.0,0.00038356,30]
[402043162,1768492252553,-500.0,0.00038356,30]
[402043163,1768492252563,-500.0,0.00038356,30]
[402043164,1768492252572,-1087.94,0.00038356,30]
[402043165,1768492252582,-500.0,0.00038356,30]
[402043166,1768492252591,-500.0,0.00038356,30]
[402043167,1768492252600,-819.93,0.00038356,30]
[402043168,1768492252610,-635.53,0.00038356,30]
[402043169,1768492252620,-500.0,0.00038356,30]
[402043170,1768492252629,-500.0,0.00038356,30]
[402043171,1768492252638,-500.0,0.00038356,30]
[402043172,1768492252648,-500.0,0.00038356,30]
[402043173,1768492252658,-504.51220608,0.00038356,30]
[402043174,1768492252667,-1098.12,0.00038356,30]
[402043175,1768492252677,-500.0,0.00038356,30]
[402043176,1768492252686,-500.0,0.00038356,30]
[402043177,1768492252696,-500.0,0.00038356,30]
[402043178,1768492252705,-500.0,0.00038356,30]
[402043179,1768492252719,-1009.32,0.00038356,30]
[402043180,1768492252969,-841.43,0.00038356,30]
[402043181,1768492252978,-500.0,0.00038356,30]
[402043182,1768492252988,-500.0,0.00038356,30]
[402043183,1768492252997,-619.15,0.00038356,30]
[402043184,1768492253007,-906.75,0.00038356,30]
[402043185,1768492253017,-832.0,0.00038356,30]
[402043186,1768492253026,-1366.94,0.00038356,30]
[402043187,1768492253036,-500.0,0.00038356,30]
[402043188,1768492253045,-500.0,0.00038356,30]
[402043189,1768492253055,-500.0,0.00038356,30]
[402043190,1768492253065,-500.0,0.00038356,30]
[402043191,1768492253076,-500.0,0.00038356,30]
[402043192,1768492253086,-500.0,0.00038356,30]
[402043193,1768492253096,-779.33,0.00038356,30]
[402043194,1768492253107,-600.3,0.00038356,30]
[402043195,1768492253117,-683.96,0.00038356,30]
[402043196,1768492253129,-500.0,0.00038356,30]
[402043197,1768492253140,-625.49,0.00038356,30]
[402043198,1768492253150,-500.0,0.00038356,30]
[402043199,1768492253160,-500.0,0.00038356,30]
[402043200,1768492253172,-770.13,0.00038356,30]
[402043201,1768492253182,-857.08,0.00038356,30]
[402043202,1768492253192,-500.0,0.00038356,30]
[402043203,1768492253202,-511.88,0.00038356,30]
[402043204,1768492253219,-500.0,0.00038356,30]
[402043205,1768492253229,-500.0,0.00038356,30]
[402043206,1768492253240,-500.0,0.00038356,30]
[402043207,1768492253250,-500.0,0.00038356,30]
[402043208,1768492253260,-687.85,0.00038356,30]
[402043209,1768492253272,-500.0,0.00038356,30]
[402043210,1768492253282,-500.0,0.00038356,30]
[402043211,1768492253293,-1148.7,0.00038356,30]
[402043212,1768492253303,-500.0,0.00038356,30]
[402043213,1768492253313,-755.8,0.00038356,30]
[402043214,1768492253323,-506.27,0.00038356,30]
[402043215,1768492253333,-386.27011672,0.00038356,30]
[402043216,1768492253344,-500.0,0.00038356,30]
[402043217,1768492253353,-1002.14,0.00038356,30]
[402043218,1768492253364,-500.0,0.00038356,30]
[402043219,1768492253374,-500.0,0.00038356,30]
[402043220,1768492253385,-500.0,0.00038356,30]
[402043221,1768492253395,-500.0,0.00038356,30]
[402043222,1768492253405,-500.0,0.00038356,30]
[402043223,1768492253415,-500.0,0.00038356,30]
[402043224,1768492253425,-593.7,0.00038356,30]
[402043225,1768492253435,-500.0,0.00038356,30]
[402043226,1768492253445,-500.0,0.00038356,30]
[402043227,1768492253455,-500.0,0.00038356,30]
[402043228,1768492253467,-759.06,0.00038356,30]
[402043229,1768492253478,-500.0,0.00038356,30]
[402043230,1768492253487,-500.0,0.00038356,30]
[402043231,1768492253497,-500.0,0.00038356,30]
[402043232,1768492253508,-500.0,0.00038356,30]
[402043233,1768492253517,-1105.74,0.00038356,30]
[402043234,1768492253527,-500.0,0.00038356,30]
[402043235,1768492253537,-841.64,0.00038356,30]
[402043236,1768492253547,-500.0,0.00038356,30]
[402043237,1768492253558,-550.78729765,0.00038356,30]
[402043238,1768492253567,-500.0,0.00038356,30]
[402043239,1768492253577,-500.0,0.00038356,30]
[402043240,1768492253588,-500.0,0.00038356,30]
[402043241,1768492253598,-406.47376287,0.00038356,30]
[402043242,1768492253608,-720.13,0.00038356,30]
[402043243,1768492253618,-500.0,0.00038356,30]
[402043244,1768492253628,-500.0,0.00038356,30]
[402043245,1768492253638,-703.98,0.00038356,30]
[402043246,1768492253648,-850.09,0.00038356,30]
[402043247,1768492253658,-1435.52,0.00038356,30]
[402043248,1768492253668,-542.81485516,0.00038356,30]
[402043249,1768492253677,-769.18,0.00038356,30]
[402043250,1768492253687,-1083.0,0.00038356,30]
[402043251,1768492253696,-500.0,0.00038356,30]
[402043252,1768492253709,-1629.08,0.00038356,30]
[402043253,1768492253723,-500.0,0.00038356,30]
[402043254,1768492253732,-500.0,0.00038356,30]
[402043255,1768492253742,-500.0,0.00038356,30]
[402043256,1768492253753,-635.84,0.00038356,30]
[402043257,1768492253763,-500.0,0.00038356,30]
[402043258,1768492253773,-1046.73,0.00038356,30]
[402043259,1768492253783,-500.0,0.00038356,30]
[402043260,1768492253794,-630.97,0.00038356,30]
[402043261,1768492253804,-503.37243789,0.00038356,30]
[402043262,1768492253814,-577.44,0.00038356,30]
[402043263,1768492253823,-650.46,0.00038356,30]
[402043264,1768492253833,-500.0,0.00038356,30]
[402043265,1768492253842,-500.0,0.00038356,30]
[402043266,1768492253852,-1237.98,0.00038356,30]
[402043267,1768492253862,-500.0,0.00038356,30]
[402043268,1768492253872,-500.0,0.00038356,30]
[402043269,1768492253882,-556.36227757,0.00038356,30]
[402043270,1768492253891,-910.45,0.00038356,30]
[402043271,1768492253901,-1119.98,0.00038356,30]
[402043272,1768492253911,-500.0,0.00038356,30]
[402043273,1768492253920,-738.96,0.00038356,30]
[402043274,1768492253930,-500.0,0.00038356,30]
[402043275,1768492253940,-1087.41,0.00038356,30]
[402043276,1768492253950,-500.0,0.00038356,30]
[402043277,1768492253960,-506.75,0.00038356,30]
[402043278,1768492253970,-814.71,0.00038356,30]
[402043279,1768492253980,-500.0,0.00038356,30]
[402043280,1768492253990,-670.97,0.00038356,30]
[402043281,1768492254000,-500.0,0.00038356,30]
[402043282,1768492254010,-1262.1,0.00038356,30]
[402043283,1768492254019,-500.0,0.00038356,30]
[402043284,1768492254029,-500.0,0.00038356,30]
[402043285,1768492254039,-500.0,0.00038356,30]
[402043286,1768492254050,-500.0,0.00038356,30]
[402043287,1768492254060,-500.0,0.00038356,30]
[402043288,1768492254071,-2186.37,0.00038356,30]
[402043289,1768492254081,-500.0,0.00038356,30]
[402043290,1768492254091,-500.0,0.00038356,30]
[402043291,1768492254101,-500.0,0.00038356,30]
[402043292,1768492254110,-500.0,0.00038356,30]
[402043293,1768492254120,-500.0,0.00038356,30]
[402043294,1768492254129,-500.0,0.00038356,30]
[402043295,1768492254139,-2218.03,0.00038356,30]
[402043296,1768492254148,-1392.88,0.00038356,30]
[402043297,1768492254158,-1141.55,0.00038356,30]
[402043298,1768492254168,-500.0,0.00038356,30]
[402043299,1768492254178,-500.0,0.00038356,30]
[402043300,1768492254193,-500.0,0.00038356,30]
[402043301,1768492254202,-642.96,0.00038356,30]
[402043302,1768492254213,-500.0,0.00038356,30]
[402043303,1768492254228,-500.0,0.00038356,30]
[402043304,1768492254242,-500.0,0.00038356,30]
[402043305,1768492254252,-500.0,0.00038356,30]
[402043306,1768492254261,-500.0,0.00038356,30]
[402043307,1768492254271,-500.0,0.00038356,30]
[402043308,1768492254280,-500.0,0.00038356,30]
[402043309,1768492254290,-578.69,0.00038356,30]
[402043310,1768492254301,-1138.64,0.00038356,30]
[402043311,1768492254311,-500.0,0.00038356,30]
[402043312,1768492254321,-500.0,0.00038356,30]
[402043313,1768492254330,-817.27,0.00038356,30]
[402043314,1768492254340,-675.68,0.00038356,30]
[402043315,1768492254349,-861.62,0.00038356,30]
[402043316,1768492254359,-501.98,0.00038356,30]
[402043317,1768492254368,-500.0,0.00038356,30]
[402043318,1768492254378,-500.0,0.00038356,30]
[402043319,1768492254388,-500.0,0.00038356,30]
[402043320,1768492254397,-854.93,0.00038356,30]
[402043321,1768492254407,-2812.59,0.00038356,30]
[402043322,1768492254417,-1487.49,0.00038356,30]
[402043323,1768492254427,-943.8,0.00038356,30]
[402043324,1768492254436,-1087.92,0.00038356,30]
[402043325,1768492254446,-278.72980259,0.00038356,30]
[402043326,1768492254458,-500.0,0.00038356,30]
[402043327,1768492254467,-500.0,0.00038356,30]
[402043328,1768492254478,-500.0,0.00038356,30]
[402043329,1768492254488,-1191.47,0.00038356,30]
[402043330,1768492254498,-734.3,0.00038356,30]
[402043331,1768492254508,-1314.34,0.00038356,30]
[402043332,1768492254518,-969.34,0.00038356,30]
[402043333,1768492254528,-567.44,0.00038356,30]
[402043334,1768492254537,-503.49,0.00038356,30]
[402043335,1768492254547,-500.0,0.00038356,30]
[402043336,1768492254556,-500.0,0.00038356,30]
[402043337,1768492254566,-3478.23,0.00038356,30]
[402043338,1768492254575,-1324.17,0.00038356,30]
[402043339,1768492254585,-789.03,0.00038356,30]
[402043340,1768492254595,-546.76,0.00038356,30]
[402043341,1768492254606,-500.0,0.00038356,30]
[402043342,1768492254615,-447.28907818,0.00038356,30]
[402043343,1768492254625,-500.0,0.00038356,30]
[402043344,1768492254635,-500.0,0.00038356,30]
[402043345,1768492254644,-500.0,0.00038356,30]
[402043346,1768492254654,-500.0,0.00038356,30]
[402043347,1768492254664,-1967.89,0.00038356,30]
[402043348,1768492254674,-500.0,0.00038356,30]
[402043349,1768492254683,-500.0,0.00038356,30]
[402043350,1768492254692,-546.43,0.00038356,30]
[402043351,1768492254701,-500.0,0.00038356,30]
[402043352,1768492254714,-667.74,0.00038356,30]
[402043353,1768492254723,-500.0,0.00038356,30]
[402043354,1768492254732,-505.35,0.00038356,30]
[402043355,1768492254742,-500.0,0.00038356,30]
[402043356,1768492254751,-500.0,0.00038356,30]
[402043357,1768492254761,-500.0,0.00038356,30]
[402043358,1768492254770,-500.0,0.00038356,30]
[402043359,1768492254779,-507.56,0.00038356,30]
[402043360,1768492254790,-555.7,0.00038356,30]
[402043361,1768492254800,-500.0,0.00038356,30]
[402043362,1768492254810,-500.0,0.00038356,30]
[402043363,1768492254819,-500.0,0.00038356,30]
[402043364,1768492254830,-500.0,0.00038356,30]
[402043365,1768492254840,-500.0,0.00038356,30]
[402043366,1768492254850,-756.3,0.00038356,30]
[402043367,1768492254861,-500.0,0.00038356,30]
[402043368,1768492254872,-1000.0,0.00038356,30]
[402043369,1768492254882,-500.0,0.00038356,30]
[402043370,1768492254892,-500.0,0.00038356,30]
[402043371,1768492254902,-500.0,0.00038356,30]
[402043372,1768492254912,-1251.29,0.00038356,30]
[402043373,1768492254921,-500.0,0.00038356,14]
[402043374,1768492254931,-573.17,0.00038356,30]
[402043375,1768492254940,-500.0,0.00038356,30]
[402043376,1768492254950,-1602.21,0.00038356,30]
[402043377,1768492254962,-500.0,0.00038356,30]